[Event "*** SCC Grand Prix: Titled Tuesday Blitz"]
[Site "Chess.com"]
[Date "2020.06.23"]
[Round "1"]
[White "CrushingKings"]
[Black "Panterov"]
[Result "1-0"]
[WhiteElo "2533"]
[BlackElo "2158"]
[TimeControl "180+1"]
[EndTime "10:08:51 PDT"]
[Termination "CrushingKings won on time"]

1. e4 {[%clk 0:03:00.2]} 1... e5 {[%clk 0:02:58.2]} 2. Nf3 {[%clk 0:03:00.4]}
2... Nf6 {[%clk 0:02:57.3]} 3. Nxe5 {[%clk 0:02:59.8]} 3... d6 {[%clk
0:02:56.1]} 4. Nf3 {[%clk 0:02:59.9]} 4... Nxe4 {[%clk 0:02:55.9]} 5. Nc3 {[%clk
0:03:00.8]} 5... Nxc3 {[%clk 0:02:55.1]} 6. dxc3 {[%clk 0:03:01.7]} 6... Be7
{[%clk 0:02:55.3]} 7. Bc4 {[%clk 0:03:01.7]} 7... O-O {[%clk 0:02:56.2]} 8. Be3
{[%clk 0:03:01.8]} 8... Be6 {[%clk 0:02:52.8]} 9. Qd3 {[%clk 0:02:59.9]} 9...
Nd7 {[%clk 0:02:47.8]} 10. O-O-O {[%clk 0:02:59]} 10... Ne5 {[%clk 0:02:47]} 11.
Nxe5 {[%clk 0:02:58.2]} 11... dxe5 {[%clk 0:02:46.4]} 12. Bxe6 {[%clk
0:02:58.4]} 12... Qxd3 {[%clk 0:02:40.8]} 13. Bxf7+ {[%clk 0:02:58.6]} 13...
Rxf7 {[%clk 0:02:39.5]} 14. Rxd3 {[%clk 0:02:59.2]} 14... Bf6 {[%clk 0:02:36.1]}
15. Rhd1 {[%clk 0:02:58.6]} 15... Re8 {[%clk 0:02:30.9]} 16. a4 {[%clk
0:02:53.6]} 16... b6 {[%clk 0:02:28.4]} 17. a5 {[%clk 0:02:51.1]} 17... e4
{[%clk 0:02:20.6]} 18. Rd7 {[%clk 0:02:50.1]} 18... Rxd7 {[%clk 0:02:17]} 19.
Rxd7 {[%clk 0:02:51]} 19... Re7 {[%clk 0:02:17]} 20. Rd5 {[%clk 0:02:33.7]}
20... Kf7 {[%clk 0:02:11.7]} 21. Kd1 {[%clk 0:02:28.9]} 21... Ke6 {[%clk
0:02:08.9]} 22. Rd2 {[%clk 0:02:28.7]} 22... Rd7 {[%clk 0:02:07.9]} 23. Rxd7
{[%clk 0:02:29.2]} 23... Kxd7 {[%clk 0:02:07.5]} 24. axb6 {[%clk 0:02:30.1]}
24... axb6 {[%clk 0:01:59.6]} 25. Ke2 {[%clk 0:02:30.4]} 25... Ke6 {[%clk
0:01:58.7]} 26. Bf4 {[%clk 0:02:30.2]} 26... c6 {[%clk 0:01:47.1]} 27. g4 {[%clk
0:02:26.9]} 27... Kd5 {[%clk 0:01:43.6]} 28. h3 {[%clk 0:02:18.6]} 28... b5
{[%clk 0:01:42.7]} 29. Bd2 {[%clk 0:02:14.3]} 29... c5 {[%clk 0:01:41.6]} 30.
Bf4 {[%clk 0:02:08.5]} 30... c4 {[%clk 0:01:40.3]} 31. Bd2 {[%clk 0:02:07.3]}
31... Be5 {[%clk 0:01:37.3]} 32. Ke3 {[%clk 0:02:01.3]} 32... Bd6 {[%clk
0:01:35.6]} 33. Ke2 {[%clk 0:01:58.6]} 33... g6 {[%clk 0:01:33.8]} 34. Be3
{[%clk 0:01:56.6]} 34... Be5 {[%clk 0:01:30.8]} 35. Bd2 {[%clk 0:01:56.8]} 35...
Bd6 {[%clk 0:01:29.5]} 36. Bh6 {[%clk 0:01:55.2]} 36... Be5 {[%clk 0:01:25]} 37.
Bf8 {[%clk 0:01:55.1]} 37... Bc7 {[%clk 0:01:23.5]} 38. Bg7 {[%clk 0:01:49.1]}
38... Bb6 {[%clk 0:01:21.5]} 39. Bf6 {[%clk 0:01:47.2]} 39... Bc5 {[%clk
0:01:20.4]} 40. Bg7 {[%clk 0:01:31.2]} 40... Bb6 {[%clk 0:01:18.1]} 41. Bh6
{[%clk 0:01:29.9]} 41... Bc5 {[%clk 0:01:13.3]} 42. Be3 {[%clk 0:01:29.4]} 42...
Bd6 {[%clk 0:01:03.8]} 43. Bd4 {[%clk 0:01:29.1]} 43... Bf4 {[%clk 0:00:57.9]}
44. b3 {[%clk 0:01:23.7]} 44... Bg5 {[%clk 0:00:50.8]} 45. f3 {[%clk 0:01:13.8]}
45... Bc1 {[%clk 0:00:43.9]} 46. Be3 {[%clk 0:01:07.3]} 46... Bb2 {[%clk
0:00:36]} 47. Bd2 {[%clk 0:01:05.9]} 47... Ba3 {[%clk 0:00:32.1]} 48. b4 {[%clk
0:01:02.7]} 48... Bb2 {[%clk 0:00:27.9]} 49. f4 {[%clk 0:00:39.6]} 49... Ba1
{[%clk 0:00:20.1]} 50. Ke3 {[%clk 0:00:39.5]} 50... Bb2 {[%clk 0:00:18.8]} 51.
f5 {[%clk 0:00:22.7]} 51... gxf5 {[%clk 0:00:17.7]} 52. gxf5 {[%clk 0:00:23.6]}
52... Ke5 {[%clk 0:00:18.1]} 53. f6 {[%clk 0:00:23.6]} 53... Kxf6 {[%clk
0:00:17.3]} 54. Kxe4 {[%clk 0:00:24.5]} 54... Ke6 {[%clk 0:00:18.2]} 55. Kd4
{[%clk 0:00:22.5]} 55... Kd6 {[%clk 0:00:16.9]} 56. Bf4+ {[%clk 0:00:21.8]}
56... Kc6 {[%clk 0:00:15.8]} 57. h4 {[%clk 0:00:20.9]} 57... Ba3 {[%clk
0:00:13.5]} 58. h5 {[%clk 0:00:19.5]} 58... Bb2 {[%clk 0:00:12.8]} 59. Bd2
{[%clk 0:00:18.3]} 59... Kd6 {[%clk 0:00:11.5]} 60. Bf4+ {[%clk 0:00:17.6]}
60... Kc6 {[%clk 0:00:10]} 61. Bd2 {[%clk 0:00:15]} 61... Kd6 {[%clk 0:00:08.7]}
62. Ke4 {[%clk 0:00:15.9]} 62... Ke6 {[%clk 0:00:07.3]} 63. Kf4 {[%clk
0:00:14.2]} 63... Kf6 {[%clk 0:00:06.8]} 64. Ke4 {[%clk 0:00:14.3]} 64... Ke6
{[%clk 0:00:04.8]} 65. h6 {[%clk 0:00:13.8]} 65... Ba3 {[%clk 0:00:03.4]} 66.
Kd4 {[%clk 0:00:13.3]} 66... Kd6 {[%clk 0:00:03]} 67. Bf4+ {[%clk 0:00:12.8]}
67... Kc6 {[%clk 0:00:02.4]} 68. Ke5 {[%clk 0:00:12.8]} 68... Bb2 {[%clk
0:00:02.7]} 69. Bd2 {[%clk 0:00:13]} 69... Kd7 {[%clk 0:00:01.6]} 70. Kf6 {[%clk
0:00:13.3]} 1-0

[Event "*** SCC Grand Prix: Titled Tuesday Blitz"]
[Site "Chess.com"]
[Date "2020.06.23"]
[Round "1"]
[White "StephenDedalus83"]
[Black "Chessdreamer2020"]
[Result "1/2-1/2"]
[WhiteElo "2763"]
[BlackElo "2443"]
[TimeControl "180+1"]
[EndTime "10:08:52 PDT"]
[Termination "Game drawn by stalemate"]

1. e4 {[%clk 0:02:40.4]} 1... d6 {[%clk 0:02:56.2]} 2. d4 {[%clk 0:02:39.8]}
2... Nf6 {[%clk 0:02:55.8]} 3. Nc3 {[%clk 0:02:39.6]} 3... e5 {[%clk 0:02:53.9]}
4. Nf3 {[%clk 0:02:39.5]} 4... Nbd7 {[%clk 0:02:53]} 5. Bc4 {[%clk 0:02:39.5]}
5... Be7 {[%clk 0:02:52.5]} 6. O-O {[%clk 0:02:39.6]} 6... O-O {[%clk
0:02:51.5]} 7. Re1 {[%clk 0:02:40.2]} 7... a6 {[%clk 0:02:45.7]} 8. a4 {[%clk
0:02:40.4]} 8... b6 {[%clk 0:02:45.4]} 9. Qe2 {[%clk 0:02:40]} 9... c6 {[%clk
0:02:42.1]} 10. Rd1 {[%clk 0:02:25.6]} 10... Qc7 {[%clk 0:02:32.2]} 11. Nh4
{[%clk 0:02:25.2]} 11... exd4 {[%clk 0:02:28.1]} 12. Rxd4 {[%clk 0:02:24.5]}
12... Ne5 {[%clk 0:02:27.9]} 13. Bb3 {[%clk 0:02:20.9]} 13... Bg4 {[%clk
0:02:27.8]} 14. f3 {[%clk 0:02:18.6]} 14... Be6 {[%clk 0:02:20.7]} 15. Nf5
{[%clk 0:01:59.3]} 15... Bxf5 {[%clk 0:02:17]} 16. exf5 {[%clk 0:01:59.2]} 16...
Rfe8 {[%clk 0:02:13.6]} 17. Be3 {[%clk 0:01:49.8]} 17... Bf8 {[%clk 0:02:11.6]}
18. Qf2 {[%clk 0:01:43.5]} 18... d5 {[%clk 0:02:05]} 19. Rdd1 {[%clk 0:01:40.6]}
19... Ned7 {[%clk 0:01:58.4]} 20. Kh1 {[%clk 0:01:34.2]} 20... Bc5 {[%clk
0:01:40.6]} 21. Bxc5 {[%clk 0:01:24]} 21... Nxc5 {[%clk 0:01:40.7]} 22. a5
{[%clk 0:01:23.9]} 22... Nfd7 {[%clk 0:01:23.9]} 23. axb6 {[%clk 0:01:18.9]}
23... Qxb6 {[%clk 0:01:23.4]} 24. Ra3 {[%clk 0:01:02.5]} 24... Nxb3 {[%clk
0:01:22.5]} 25. Qxb6 {[%clk 0:01:01.5]} 25... Nxb6 {[%clk 0:01:22.8]} 26. Rxb3
{[%clk 0:01:01.2]} 26... Nc4 {[%clk 0:01:23.3]} 27. g4 {[%clk 0:00:49.7]} 27...
Rab8 {[%clk 0:01:04.6]} 28. Rxb8 {[%clk 0:00:48.7]} 28... Rxb8 {[%clk
0:01:04.3]} 29. b3 {[%clk 0:00:49.3]} 29... Na3 {[%clk 0:00:41.6]} 30. Rd2
{[%clk 0:00:49.1]} 30... Re8 {[%clk 0:00:39.9]} 31. Ne2 {[%clk 0:00:48.6]} 31...
Re3 {[%clk 0:00:27.4]} 32. Nd4 {[%clk 0:00:38.3]} 32... Rc3 {[%clk 0:00:22.8]}
33. Rd3 {[%clk 0:00:29.5]} 33... Rxd3 {[%clk 0:00:20.2]} 34. cxd3 {[%clk
0:00:29.5]} 34... c5 {[%clk 0:00:20.5]} 35. Nc6 {[%clk 0:00:29.5]} 35... d4
{[%clk 0:00:15.4]} 36. Nb8 {[%clk 0:00:27.1]} 36... a5 {[%clk 0:00:15.3]} 37.
Nc6 {[%clk 0:00:27]} 37... a4 {[%clk 0:00:13.6]} 38. bxa4 {[%clk 0:00:26.1]}
38... c4 {[%clk 0:00:14]} 39. Nxd4 {[%clk 0:00:21.4]} 39... cxd3 {[%clk
0:00:12.6]} 40. Nb3 {[%clk 0:00:21.2]} 40... Nc4 {[%clk 0:00:12]} 41. Kg2 {[%clk
0:00:20.4]} 41... d2 {[%clk 0:00:09.7]} 42. Nxd2 {[%clk 0:00:20.3]} 42... Nxd2
{[%clk 0:00:09.9]} 43. a5 {[%clk 0:00:20.9]} 43... Nc4 {[%clk 0:00:09]} 44. a6
{[%clk 0:00:21.3]} 44... Nb6 {[%clk 0:00:08.3]} 45. f4 {[%clk 0:00:21.4]} 45...
Kf8 {[%clk 0:00:08.7]} 46. Kf3 {[%clk 0:00:21.6]} 46... Ke7 {[%clk 0:00:08.7]}
47. Ke4 {[%clk 0:00:21.8]} 47... Kd6 {[%clk 0:00:08.8]} 48. g5 {[%clk 0:00:21]}
48... f6 {[%clk 0:00:08.1]} 49. h4 {[%clk 0:00:19.9]} 49... h6 {[%clk
0:00:07.7]} 50. Kf3 {[%clk 0:00:19.3]} 50... h5 {[%clk 0:00:04.3]} 51. Ke4
{[%clk 0:00:18.1]} 51... Kc5 {[%clk 0:00:04.7]} 52. Kd3 {[%clk 0:00:16.8]} 52...
Kb5 {[%clk 0:00:04.4]} 53. Kd4 {[%clk 0:00:16.7]} 53... Kxa6 {[%clk 0:00:04.2]}
54. Kc5 {[%clk 0:00:17.3]} 54... Kb7 {[%clk 0:00:04.2]} 55. Kd6 {[%clk
0:00:17.4]} 55... Nc4+ {[%clk 0:00:02.8]} 56. Ke6 {[%clk 0:00:17]} 56... Ne3
{[%clk 0:00:02.8]} 57. gxf6 {[%clk 0:00:16.5]} 57... gxf6 {[%clk 0:00:03.1]} 58.
Kxf6 {[%clk 0:00:17]} 58... Kc6 {[%clk 0:00:03.7]} 59. Kg6 {[%clk 0:00:16.3]}
59... Kd6 {[%clk 0:00:03.9]} 60. f6 {[%clk 0:00:16.2]} 60... Ke6 {[%clk
0:00:04]} 61. f7 {[%clk 0:00:16.3]} 61... Ke7 {[%clk 0:00:03.3]} 62. Kg7 {[%clk
0:00:16]} 62... Nf5+ {[%clk 0:00:03.1]} 63. Kg6 {[%clk 0:00:15.7]} 63... Nd6
{[%clk 0:00:02]} 64. Kxh5 {[%clk 0:00:13.7]} 64... Kxf7 {[%clk 0:00:01.4]} 65.
Kh6 {[%clk 0:00:13.5]} 65... Ne8 {[%clk 0:00:02]} 66. Kg5 {[%clk 0:00:12.4]}
66... Nf6 {[%clk 0:00:02.5]} 67. h5 {[%clk 0:00:12.9]} 67... Nxh5 {[%clk
0:00:02.5]} 68. Kxh5 {[%clk 0:00:12.9]} 68... Kf6 {[%clk 0:00:03]} 69. Kg4
{[%clk 0:00:12.9]} 69... Kg6 {[%clk 0:00:03.3]} 70. f5+ {[%clk 0:00:12.5]} 70...
Kf6 {[%clk 0:00:03.8]} 71. Kf4 {[%clk 0:00:13]} 71... Kf7 {[%clk 0:00:04.4]} 72.
Kg5 {[%clk 0:00:12.3]} 72... Kg7 {[%clk 0:00:04.3]} 73. f6+ {[%clk 0:00:12.8]}
73... Kf7 {[%clk 0:00:04.5]} 74. Kf5 {[%clk 0:00:13.2]} 74... Kf8 {[%clk
0:00:04.6]} 75. Ke6 {[%clk 0:00:13.3]} 75... Ke8 {[%clk 0:00:04.5]} 76. f7+
{[%clk 0:00:13.5]} 76... Kf8 {[%clk 0:00:04.7]} 77. Kf6 {[%clk 0:00:13.9]}
1/2-1/2

[Event "*** SCC Grand Prix: Titled Tuesday Blitz"]
[Site "Chess.com"]
[Date "2020.06.23"]
[Round "1"]
[White "m_ezat"]
[Black "Ze-Pequeno"]
[Result "1-0"]
[WhiteElo "2539"]
[BlackElo "2164"]
[TimeControl "180+1"]
[EndTime "10:08:52 PDT"]
[Termination "m_ezat won by resignation"]

1. d4 {[%clk 0:03:00.9]} 1... Nf6 {[%clk 0:02:58.7]} 2. c4 {[%clk 0:02:58.6]}
2... g6 {[%clk 0:02:55.9]} 3. Nc3 {[%clk 0:02:59]} 3... d5 {[%clk 0:02:55.6]} 4.
Bg5 {[%clk 0:02:57.3]} 4... Ne4 {[%clk 0:02:53.6]} 5. cxd5 {[%clk 0:02:56.7]}
5... Nxg5 {[%clk 0:02:50.3]} 6. h4 {[%clk 0:02:55.8]} 6... Ne4 {[%clk
0:02:46.3]} 7. Nxe4 {[%clk 0:02:54.8]} 7... Qxd5 {[%clk 0:02:45]} 8. Qd3 {[%clk
0:02:55.2]} 8... Bf5 {[%clk 0:02:27]} 9. Nc3 {[%clk 0:02:54.2]} 9... Qa5 {[%clk
0:02:06.3]} 10. e4 {[%clk 0:02:50.7]} 10... Bd7 {[%clk 0:02:02.6]} 11. h5 {[%clk
0:02:48.3]} 11... Bg7 {[%clk 0:02:01.2]} 12. h6 {[%clk 0:02:48]} 12... Bf8
{[%clk 0:01:59.6]} 13. Nf3 {[%clk 0:02:47.8]} 13... Bg4 {[%clk 0:01:22.8]} 14.
Ne5 {[%clk 0:02:42.6]} 14... Bc8 {[%clk 0:01:19.9]} 15. Qc4 {[%clk 0:02:27.6]}
15... e6 {[%clk 0:01:14.9]} 16. a3 {[%clk 0:02:26.8]} 16... c6 {[%clk
0:01:05.5]} 17. Qb3 {[%clk 0:02:12.2]} 17... Qb6 {[%clk 0:01:04.4]} 18. Qd1
{[%clk 0:01:59]} 18... Be7 {[%clk 0:01:00.2]} 19. b4 {[%clk 0:01:57.1]} 19...
O-O {[%clk 0:00:56.6]} 20. Nc4 {[%clk 0:01:43.2]} 20... Qc7 {[%clk 0:00:53.2]}
21. e5 {[%clk 0:01:42.2]} 21... Nd7 {[%clk 0:00:43]} 22. Ne4 {[%clk 0:01:41.4]}
22... Nb6 {[%clk 0:00:36.9]} 23. Ncd6 {[%clk 0:01:35.9]} 23... Bd7 {[%clk
0:00:35.2]} 24. Qf3 {[%clk 0:01:29.8]} 24... f5 {[%clk 0:00:33.7]} 25. Nc5
{[%clk 0:01:05.4]} 25... Bxd6 {[%clk 0:00:32.8]} 26. exd6 {[%clk 0:01:05.3]}
26... Qxd6 {[%clk 0:00:33.2]} 27. Qc3 {[%clk 0:01:03.5]} 27... Nd5 {[%clk
0:00:30.7]} 28. Qb2 {[%clk 0:01:03.6]} 28... b6 {[%clk 0:00:29.1]} 29. Nd3
{[%clk 0:01:02.3]} 29... Rad8 {[%clk 0:00:22.2]} 30. Ne5 {[%clk 0:00:58.8]}
30... c5 {[%clk 0:00:21.9]} 31. bxc5 {[%clk 0:00:57.9]} 31... bxc5 {[%clk
0:00:21.4]} 32. dxc5 {[%clk 0:00:55.6]} 32... Qe7 {[%clk 0:00:17.4]} 33. Nxg6
{[%clk 0:00:44.2]} 33... hxg6 {[%clk 0:00:11.9]} 34. h7+ {[%clk 0:00:43.9]}
34... Kf7 {[%clk 0:00:12.4]} 35. h8=Q {[%clk 0:00:40.3]} 35... Rxh8 {[%clk
0:00:11.5]} 36. Rxh8 {[%clk 0:00:40.7]} 36... Rxh8 {[%clk 0:00:12.4]} 37. Qxh8
{[%clk 0:00:41.3]} 37... Nf6 {[%clk 0:00:12.9]} 38. Qb8 {[%clk 0:00:37.6]} 38...
Qxc5 {[%clk 0:00:11.9]} 39. Qb2 {[%clk 0:00:36.1]} 39... Nd5 {[%clk 0:00:10.2]}
40. Rc1 {[%clk 0:00:32.9]} 40... Qa5+ {[%clk 0:00:09.5]} 41. Qd2 {[%clk
0:00:33.5]} 41... Qxa3 {[%clk 0:00:07.7]} 42. Bc4 {[%clk 0:00:34]} 42... Qd6
{[%clk 0:00:06.8]} 43. Bxd5 {[%clk 0:00:33.8]} 43... exd5 {[%clk 0:00:06.6]} 44.
Qd4 {[%clk 0:00:32.9]} 44... Qe6+ {[%clk 0:00:05.6]} 45. Kf1 {[%clk 0:00:32.3]}
45... a5 {[%clk 0:00:05.7]} 46. Rc7 {[%clk 0:00:24.6]} 46... Qd6 {[%clk
0:00:05.1]} 47. Qa7 {[%clk 0:00:22.4]} 47... Ke6 {[%clk 0:00:04.7]} 48. Qxa5
{[%clk 0:00:21.1]} 48... d4 {[%clk 0:00:05]} 49. Rc1 {[%clk 0:00:18.4]} 49... d3
{[%clk 0:00:05.1]} 50. Re1+ {[%clk 0:00:18.9]} 50... Kf6 {[%clk 0:00:04.9]} 51.
Qc3+ {[%clk 0:00:18.5]} 51... Kf7 {[%clk 0:00:04.7]} 52. Qc4+ {[%clk 0:00:18.5]}
52... Be6 {[%clk 0:00:03.7]} 53. Qc3 {[%clk 0:00:18.1]} 53... Qd5 {[%clk
0:00:02.8]} 54. Rd1 {[%clk 0:00:18]} 54... f4 {[%clk 0:00:03.2]} 55. Rxd3 {[%clk
0:00:18]} 55... Qxd3+ {[%clk 0:00:02.4]} 56. Qxd3 {[%clk 0:00:17.5]} 56... Bc4
{[%clk 0:00:03.3]} 57. Qxc4+ {[%clk 0:00:17.3]} 57... Kf6 {[%clk 0:00:02.7]} 58.
Qxf4+ {[%clk 0:00:17.7]} 58... Kg7 {[%clk 0:00:02.3]} 59. g4 {[%clk 0:00:17.8]}
1-0

[Event "*** SCC Grand Prix: Titled Tuesday Blitz"]
[Site "Chess.com"]
[Date "2020.06.23"]
[Round "1"]
[White "Barmen_EV"]
[Black "penguingm1"]
[Result "0-1"]
[WhiteElo "2448"]
[BlackElo "2906"]
[TimeControl "180+1"]
[EndTime "10:09:05 PDT"]
[Termination "penguingm1 won by checkmate"]

1. d4 {[%clk 0:02:59.6]} 1... d5 {[%clk 0:02:33.7]} 2. c4 {[%clk 0:02:58.9]}
2... e6 {[%clk 0:02:28.9]} 3. Nc3 {[%clk 0:02:58]} 3... Be7 {[%clk 0:02:26.7]}
4. cxd5 {[%clk 0:02:57.3]} 4... exd5 {[%clk 0:02:27.6]} 5. Bf4 {[%clk 0:02:58]}
5... c6 {[%clk 0:02:26.8]} 6. e3 {[%clk 0:02:57.3]} 6... Bf5 {[%clk 0:02:23.3]}
7. g4 {[%clk 0:02:52.3]} 7... Be6 {[%clk 0:02:21.9]} 8. h3 {[%clk 0:02:52.1]}
8... Nd7 {[%clk 0:02:19.4]} 9. Nf3 {[%clk 0:02:50.7]} 9... h5 {[%clk 0:02:13.7]}
10. gxh5 {[%clk 0:02:49.2]} 10... Ngf6 {[%clk 0:02:12.5]} 11. h6 {[%clk
0:02:44.4]} 11... g6 {[%clk 0:02:12.9]} 12. Bd3 {[%clk 0:02:42.9]} 12... Nh5
{[%clk 0:02:09.8]} 13. Qc2 {[%clk 0:02:35]} 13... Nxf4 {[%clk 0:01:52.4]} 14.
exf4 {[%clk 0:02:35.9]} 14... Rxh6 {[%clk 0:01:53.1]} 15. O-O-O {[%clk
0:02:35.6]} 15... Qa5 {[%clk 0:01:47.2]} 16. f5 {[%clk 0:02:31.6]} 16... gxf5
{[%clk 0:01:42.5]} 17. Bxf5 {[%clk 0:02:32.5]} 17... O-O-O {[%clk 0:01:36.4]}
18. Rde1 {[%clk 0:02:28]} 18... Bd6 {[%clk 0:01:26.9]} 19. Kb1 {[%clk
0:02:15.6]} 19... Bxf5 {[%clk 0:00:58.1]} 20. Qxf5 {[%clk 0:02:16.5]} 20... Rf6
{[%clk 0:00:58.1]} 21. Qd3 {[%clk 0:01:55.5]} 21... Nb6 {[%clk 0:00:48.7]} 22.
Nd2 {[%clk 0:01:10.5]} 22... Rf4 {[%clk 0:00:20.3]} 23. h4 {[%clk 0:01:05.3]}
23... Qb4 {[%clk 0:00:19.2]} 24. Nb3 {[%clk 0:00:49.3]} 24... Nc4 {[%clk
0:00:18]} 25. h5 {[%clk 0:00:46.7]} 25... a5 {[%clk 0:00:17.7]} 26. Ne2 {[%clk
0:00:27.2]} 26... Rxf2 {[%clk 0:00:16.3]} 27. a3 {[%clk 0:00:26.5]} 27... Qb6
{[%clk 0:00:13.5]} 28. a4 {[%clk 0:00:17.1]} 28... Qb4 {[%clk 0:00:08.6]} 29.
Qc3 {[%clk 0:00:14.3]} 29... Rh8 {[%clk 0:00:06.9]} 30. h6 {[%clk 0:00:14.2]}
30... Qxb3 {[%clk 0:00:03.7]} 31. Qxb3 {[%clk 0:00:12.7]} 31... Nd2+ {[%clk
0:00:04.1]} 32. Kc2 {[%clk 0:00:12.9]} 32... Nxb3 {[%clk 0:00:04.4]} 33. Kxb3
{[%clk 0:00:13.8]} 33... Rh7 {[%clk 0:00:05]} 34. Rh3 {[%clk 0:00:10.6]} 34...
Bb4 {[%clk 0:00:03.8]} 35. Rg1 {[%clk 0:00:08.9]} 35... Rxe2 {[%clk 0:00:02.4]}
36. Rg8+ {[%clk 0:00:09.8]} 36... Kc7 {[%clk 0:00:02.5]} 37. Rg7 {[%clk
0:00:10.7]} 37... Rh8 {[%clk 0:00:03.1]} 38. h7 {[%clk 0:00:10.4]} 38... Ree8
{[%clk 0:00:03.5]} 39. Rxf7+ {[%clk 0:00:09.8]} 39... Kb6 {[%clk 0:00:04.1]} 40.
Rg3 {[%clk 0:00:10.7]} 40... Re7 {[%clk 0:00:04.3]} 41. Rgg7 {[%clk 0:00:04.8]}
41... Rxf7 {[%clk 0:00:03.8]} 42. Rxf7 {[%clk 0:00:05.7]} 42... Bd6 {[%clk
0:00:04]} 43. Kc2 {[%clk 0:00:04.8]} 43... Bh2 {[%clk 0:00:04.2]} 44. Kd3 {[%clk
0:00:04.5]} 44... Bg1 {[%clk 0:00:04.6]} 45. b3 {[%clk 0:00:04.3]} 45... Ka6
{[%clk 0:00:04.9]} 46. Kc3 {[%clk 0:00:04.5]} 46... b6 {[%clk 0:00:05.4]} 47.
Rc7 {[%clk 0:00:03.9]} 47... c5 {[%clk 0:00:05.7]} 48. dxc5 {[%clk 0:00:02.3]}
48... Bxc5 {[%clk 0:00:06.6]} 49. Kd3 {[%clk 0:00:03.2]} 49... d4 {[%clk
0:00:07]} 50. Rd7 {[%clk 0:00:03]} 50... Re8 {[%clk 0:00:07]} 51. Kc4 {[%clk
0:00:02.1]} 51... Rc8 {[%clk 0:00:06.3]} 52. Rf7 {[%clk 0:00:01.5]} 52... Rd8
{[%clk 0:00:06.1]} 53. Kd3 {[%clk 0:00:01.5]} 53... Bb4 {[%clk 0:00:06.6]} 54.
Rg7 {[%clk 0:00:01.6]} 54... Rh8 {[%clk 0:00:06.8]} 55. Rg8 {[%clk 0:00:02]}
55... Rxh7 {[%clk 0:00:06.9]} 56. Kxd4 {[%clk 0:00:02.5]} 56... Rc7 {[%clk
0:00:07]} 57. Rg3 {[%clk 0:00:01.9]} 57... Bd6 {[%clk 0:00:06.1]} 58. Rf3 {[%clk
0:00:01.8]} 58... Bc5+ {[%clk 0:00:06.1]} 59. Kd5 {[%clk 0:00:01.8]} 59... Bb4
{[%clk 0:00:06.6]} 60. Ke6 {[%clk 0:00:01.6]} 60... Rc3 {[%clk 0:00:07]} 61.
Rxc3 {[%clk 0:00:01.2]} 61... Bxc3 {[%clk 0:00:07.9]} 62. Kd5 {[%clk 0:00:02]}
62... Bb4 {[%clk 0:00:08.6]} 63. Kc6 {[%clk 0:00:02.8]} 63... Ka7 {[%clk
0:00:09]} 64. Kc7 {[%clk 0:00:03.7]} 64... Bc5 {[%clk 0:00:09.1]} 65. Kc6 {[%clk
0:00:04.6]} 65... Kb8 {[%clk 0:00:09.7]} 66. Kb5 {[%clk 0:00:05.3]} 66... Kb7
{[%clk 0:00:10.2]} 67. Kc4 {[%clk 0:00:05.3]} 67... Kc6 {[%clk 0:00:10.3]} 68.
b4 {[%clk 0:00:05.6]} 68... Bxb4 {[%clk 0:00:10.3]} 69. Kb3 {[%clk 0:00:05.6]}
69... Kc5 {[%clk 0:00:10.8]} 70. Kc2 {[%clk 0:00:05.6]} 70... Kc4 {[%clk
0:00:10.9]} 71. Kb2 {[%clk 0:00:06.5]} 71... Bc5 {[%clk 0:00:11.5]} 72. Ka2
{[%clk 0:00:05.9]} 72... Kb4 {[%clk 0:00:12.4]} 73. Kb2 {[%clk 0:00:06.8]} 73...
Kxa4 {[%clk 0:00:13.3]} 74. Ka2 {[%clk 0:00:07.7]} 74... b5 {[%clk 0:00:14.2]}
75. Kb2 {[%clk 0:00:08.2]} 75... b4 {[%clk 0:00:15.1]} 76. Ka2 {[%clk
0:00:09.1]} 76... b3+ {[%clk 0:00:15.8]} 77. Kb2 {[%clk 0:00:10]} 77... Kb4
{[%clk 0:00:16.7]} 78. Kb1 {[%clk 0:00:10.2]} 78... a4 {[%clk 0:00:17.4]} 79.
Kb2 {[%clk 0:00:11.1]} 79... a3+ {[%clk 0:00:17.6]} 80. Kb1 {[%clk 0:00:12]}
80... a2+ {[%clk 0:00:18]} 81. Kb2 {[%clk 0:00:12.7]} 81... Bd4+ {[%clk
0:00:18.2]} 82. Kc1 {[%clk 0:00:13.6]} 82... a1=Q+ {[%clk 0:00:17.5]} 83. Kd2
{[%clk 0:00:14.5]} 83... Qc3+ {[%clk 0:00:18.2]} 84. Ke2 {[%clk 0:00:14.6]}
84... Qe3+ {[%clk 0:00:18.2]} 85. Kd1 {[%clk 0:00:15.5]} 85... Qf2 {[%clk
0:00:18.1]} 86. Kc1 {[%clk 0:00:15.6]} 86... Kc3 {[%clk 0:00:18.8]} 87. Kd1
{[%clk 0:00:14.5]} 87... Qf1# {[%clk 0:00:19.7]} 0-1